bitfinex/quotes_SOLUSD_20250724
["timestamp","ask_amount","ask_price","bid_price","bid_amount"]
[1753375032663,13.67946802,185.51,185.44,0.66]
[1753375033081,13.67946802,185.51,185.45,13.67946802]
[1753375033271,13.67946802,185.5,185.45,13.67946802]
[1753375033466,26.0,185.52,185.43,13.67946802]
[1753375033467,13.67946802,185.49,185.43,13.67946802]
[1753375033692,26.56,185.52,185.44,13.67946802]
[1753375033861,13.67946802,185.49,185.44,13.67946802]
[1753375034268,26.56,185.52,185.46,13.67946802]
[1753375034473,6.5211,185.55,185.49,13.67946802]
[1753375034474,26.0,185.53,185.49,13.67946802]
[1753375034808,45.0694319,185.53,185.47,14.33946802]
[1753375034975,45.0694319,185.53,185.47,0.66]
[1753375035180,31.38996388,185.53,185.48,13.67946802]
[1753375035395,5.38996388,185.53,185.45,0.72]
[1753375035800,0.03,185.57,185.51,13.67946802]
[1753375036074,0.03,185.57,185.53,13.67946802]
[1753375036291,13.67946802,185.56,185.48,0.66]
[1753375036500,19.09833176,185.57,185.52,13.67946802]
[1753375036707,19.09833176,185.57,185.48,0.66]
[1753375036708,26.0,185.54,185.5,13.67946802]
[1753375036899,26.0,185.54,185.46,22.17644599]
[1753375036900,26.0,185.54,185.52,13.67946802]
[1753375037283,26.0,185.54,185.53,0.66]
[1753375037482,26.0,185.54,185.53,13.67946802]
[1753375037700,26.0,185.54,185.5,0.66]
[1753375037904,26.0,185.54,185.52,13.67946802]
[1753375038602,26.0,185.54,185.5,0.66]
[1753375038804,26.0,185.54,185.52,13.67946802]
[1753375039001,20.89476802,185.53,185.45,0.06]
[1753375039196,13.67946802,185.46,185.45,0.06]
[1753375039401,13.67946802,185.46,185.45,1e-08]
[1753375039608,14.23946802,185.46,185.45,1e-08]
[1753375039815,0.56,185.46,185.45,1e-08]
[1753375040016,26.0,185.43,185.39,13.67946802]
[1753375040392,13.67946802,185.45,185.39,13.67946802]
[1753375040584,18.86894171,185.49,185.43,13.67946802]
[1753375040783,58.54840973,185.49,185.43,13.67946802]
[1753375041194,13.67946802,185.46,185.4,13.67946802]
[1753375041491,13.67946802,185.45,185.39,13.67946802]
[1753375041902,26.0,185.46,185.4,13.67946802]
[1753375042111,26.0,185.46,185.41,13.67946802]
[1753375042310,5.3911262,185.49,185.45,13.67946802]
[1753375042491,5.3911262,185.49,185.46,13.67946802]
[1753375042687,26.0,185.47,185.46,13.67946802]
[1753375042888,5.39058003,185.51,185.46,13.67946802]
[1753375043116,26.0,185.48,185.39,28.69821816]
[1753375043298,39.67946802,185.47,185.41,13.67946802]
[1753375043609,20.17116802,185.46,185.41,13.67946802]
[1753375044002,20.73116802,185.46,185.4,13.67946802]
[1753375044200,20.17116802,185.46,185.4,13.67946802]
[1753375044603,5.39228902,185.45,185.41,13.67946802]
[1753375044814,5.39228902,185.45,185.43,13.67946802]
[1753375045215,5.39228902,185.45,185.42,13.67946802]
[1753375046520,26.0,185.41,185.34,0.66]
[1753375046813,26.0,185.41,185.29,13.31692466]
[1753375046814,5.39316147,185.42,185.37,13.67946802]
[1753375046995,26.0,185.39,185.38,13.67946802]
[1753375047399,26.0,185.39,185.32,0.68]
[1753375047705,26.0,185.39,185.38,13.67946802]
[1753375047907,5.39316147,185.42,185.38,13.67946802]
[1753375048214,26.0,185.4,185.38,13.67946802]
[1753375048413,26.0,185.4,185.34,0.68]
[1753375048619,5.39403419,185.39,185.38,13.67946802]
[1753375048817,5.39403419,185.39,185.34,0.68]
[1753375049115,5.39403419,185.39,185.37,13.67946802]
[1753375049306,5.39403419,185.39,185.36,13.67946802]
[1753375049490,5.39403419,185.39,185.37,13.67946802]
[1753375049888,26.0,185.39,185.38,13.67946802]
[1753375050516,26.0,185.42,185.38,14.35946802]
[1753375050699,26.0,185.4,185.38,13.67946802]
[1753375051417,26.0,185.4,185.38,8.96645503]
[1753375051732,26.0,185.4,185.39,8.96645503]
[1753375051894,13.48024962,185.46,185.39,9.64645503]
[1753375052097,22.44670465,185.46,185.39,0.68]
[1753375052297,26.0,185.45,185.41,8.96645503]
[1753375052511,5.39257981,185.44,185.41,8.96645503]
[1753375053100,5.39257981,185.44,185.4,8.96645503]
[1753375053301,5.39257981,185.44,185.39,9.64645503]
[1753375053608,5.39257981,185.44,185.4,0.68]
[1753375053807,5.3924671,185.45,185.42,8.96645503]
[1753375054017,5.3924671,185.45,185.41,0.68]
[1753375054221,5.3924671,185.45,185.41,8.96645503]
[1753375055422,8.96645503,185.52,185.44,8.96645503]
[1753375055719,44.86589047,185.52,185.44,0.68]
[1753375055902,44.86589047,185.52,185.46,8.96645503]
[1753375056100,44.86589047,185.52,185.44,0.68]
[1753375056322,44.86589047,185.52,185.46,8.96645503]
[1753375056519,31.39025442,185.52,185.47,8.96645503]
[1753375056709,40.35670945,185.52,185.46,8.96645503]
[1753375057301,0.56,185.51,185.42,8.96645503]
[1753375057525,8.96645503,185.47,185.42,8.96645503]
[1753375058202,26.0,185.51,185.41,9.64645503]
[1753375058403,8.96645503,185.47,185.41,9.64645503]
[1753375058709,5.39199827,185.46,185.41,9.64645503]
[1753375058905,14.3584533,185.46,185.41,8.96645503]
[1753375059111,5.39199827,185.46,185.41,8.96645503]
[1753375059420,8.96645503,185.45,185.4,42.08]
[1753375059725,8.96645503,185.44,185.4,42.08]
[1753375059920,8.96645503,185.42,185.39,0.06]
[1753375060104,9.52645503,185.41,185.39,0.06]
[1753375060507,0.56,185.4,185.39,0.06]
[1753375060810,5.95374325,185.4,185.39,0.06]
[1753375061525,5.95374325,185.4,185.31,0.68]
[1753375061526,28.40455642,185.4,185.31,0.68]
[1753375062146,5.39374325,185.4,185.36,8.96645503]
[1753375062302,28.40455642,185.4,185.35,8.96645503]
[1753375062497,5.39374325,185.4,185.35,8.96645503]
[1753375062698,0.56,185.47,185.39,8.96645503]
[1753375062923,8.96645503,185.46,185.39,0.68]
[1753375063217,8.96645503,185.45,185.4,8.96645503]
[1753375063525,5.39170755,185.47,185.41,0.68]
[1753375063938,0.5,185.44,185.4,8.96645503]
[1753375064301,8.96645503,185.46,185.38,42.86]
[1753375064605,8.96645503,185.46,185.4,8.96645503]
[1753375064922,5.39228902,185.45,185.41,8.96645503]
[1753375065138,2.80253137,185.5,185.44,8.96645503]
[1753375065314,5.41974402,185.54,185.49,8.96645503]
[1753375065622,31.41974402,185.54,185.47,42.18]
[1753375065804,31.41974402,185.54,185.49,8.96645503]
[1753375066123,9.52645503,185.53,185.44,42.86]
[1753375066318,43.07803294,185.54,185.49,8.96645503]
[1753375066640,34.11157791,185.54,185.49,0.68]
[1753375066801,14.38619905,185.54,185.48,8.96645503]
[1753375067322,31.41974402,185.54,185.51,8.96645503]
[1753375067525,5.41974402,185.54,185.51,8.96645503]
[1753375067835,26.0,185.53,185.51,8.96645503]
[1753375068016,26.0,185.53,185.49,0.68]
[1753375068322,26.0,185.53,185.5,8.96645503]
[1753375068624,8.96645503,185.53,185.48,8.96645503]
[1753375068802,31.41974402,185.54,185.48,0.68]
[1753375069125,5.39141686,185.48,185.43,8.96645503]
[1753375069636,5.39141686,185.48,185.47,8.96645503]
[1753375069815,0.5,185.52,185.47,9.64645503]
[1753375070006,26.5,185.52,185.5,8.96645503]
[1753375070204,0.5,185.52,185.51,8.96645503]
[1753375070516,5.4198838,185.54,185.51,9.64645503]
[1753375070913,5.4198838,185.54,185.52,8.96645503]
[1753375071112,5.4198838,185.54,185.51,9.64645503]
[1753375071309,0.03,185.54,185.52,9.64645503]
[1753375071524,0.03,185.54,185.53,9.64645503]
[1753375071726,0.03,185.54,185.52,8.96645503]
[1753375072027,0.03,185.54,185.5,8.96645503]
[1753375072215,0.03,185.54,185.49,8.96645503]
[1753375072624,8.96645503,185.53,185.47,42.22]
[1753375072820,34.96645503,185.52,185.47,42.22]
[1753375073433,5.39054498,185.51,185.47,42.22]
[1753375074011,0.5,185.5,185.47,51.18645503]
[1753375074402,0.5,185.5,185.47,51.86645503]
[1753375075207,0.5,185.5,185.47,51.18645503]
[1753375075424,5.3911262,185.49,185.47,51.18645503]
[1753375076227,5.3911262,185.49,185.41,0.68]
[1753375076429,14.35758123,185.49,185.43,8.96645503]
[1753375077131,8.96645503,185.48,185.42,51.04645503]
[1753375077325,8.96645503,185.48,185.42,51.06645503]
[1753375077521,8.96645503,185.48,185.43,8.96645503]
[1753375077522,5.39170755,185.47,185.43,8.96645503]
[1753375078036,8.96645503,185.46,185.4,9.62645503]
[1753375078330,8.96645503,185.46,185.4,8.96645503]
[1753375078834,27.83743146,185.47,185.42,8.96645503]
[1753375079137,5.39170755,185.47,185.43,9.62645503]
[1753375079428,5.39170755,185.47,185.43,8.96645503]
[1753375080116,5.39170755,185.47,185.42,8.96645503]
[1753375080426,27.83743146,185.47,185.41,8.96645503]
[1753375080634,5.39170755,185.47,185.43,8.96645503]
[1753375080805,31.39136911,185.49,185.39,47.4739906]
[1753375081006,31.39136911,185.49,185.46,8.96645503]
[1753375081226,44.86918462,185.49,185.45,42.0]
[1753375081427,34.96645503,185.46,185.39,8.96645503]
[1753375081630,5.39287062,185.43,185.38,42.1]
[1753375081937,5.39287062,185.43,185.39,8.96645503]
[1753375082134,5.39287062,185.43,185.39,9.62645503]
[1753375082338,5.39228902,185.45,185.4,9.62645503]
[1753375082633,5.39228902,185.45,185.41,0.66]
[1753375082831,8.96645503,185.43,185.38,42.1]
[1753375083040,9.52645503,185.42,185.36,8.96645503]
[1753375083214,9.52645503,185.42,185.34,42.06]
[1753375083415,25.12631158,185.45,185.37,8.96645503]
[1753375083748,5.39228902,185.45,185.42,8.96645503]
[1753375084035,5.39228902,185.45,185.4,42.06]
[1753375084238,176.83946661,185.45,185.39,51.02645503]
[1753375084435,176.83946661,185.45,185.41,8.96645503]
[1753375084436,154.39228902,185.45,185.41,8.96645503]
[1753375084611,153.84777157,185.5,185.44,8.96645503]
[1753375084814,40.35758123,185.49,185.42,0.66]
[1753375085128,27.83539674,185.49,185.43,8.96645503]
[1753375085441,44.86894171,185.49,185.44,8.96645503]
[1753375085932,53.83539674,185.49,185.43,8.96645503]
[1753375086134,44.86894171,185.49,185.44,8.96645503]
[1753375086340,5.3911262,185.49,185.39,47.4539851]
[1753375086515,0.56,185.48,185.41,8.96645503]
[1753375087035,18.86894171,185.49,185.41,0.66]
[1753375087240,26.0,185.47,185.41,0.66]
[1753375087430,175.0,185.46,185.39,42.06]
[1753375087628,8.96645503,185.43,185.39,42.06]
[1753375087832,14.3596165,185.42,185.39,42.06]
[1753375088018,34.96645503,185.4,185.33,8.96645503]
[1753375088224,8.96645503,185.39,185.33,8.96645503]
[1753375088434,8.96645503,185.39,185.34,8.96645503]
[1753375088820,26.0,185.4,185.35,8.96645503]
[1753375089018,26.0,185.4,185.36,8.96645503]
[1753375089219,26.0,185.4,185.31,42.04]
[1753375089438,26.0,185.4,185.35,8.96645503]
[1753375089840,26.0,185.4,185.34,8.96645503]
[1753375089841,18.87911968,185.39,185.34,8.96645503]
[1753375090527,28.40557471,185.39,185.33,8.96645503]
[1753375090760,0.56,185.38,185.33,8.96645503]
[1753375090923,27.84557471,185.39,185.33,8.96645503]
[1753375091125,18.87911968,185.39,185.34,8.96645503]
[1753375091723,27.84557471,185.39,185.33,8.96645503]
[1753375092127,31.39403419,185.39,185.35,8.96645503]
[1753375092740,44.87911968,185.39,185.32,0.66]
[1753375092944,44.87911968,185.39,185.34,8.96645503]
[1753375093132,53.84557471,185.39,185.34,8.96645503]
[1753375093640,31.39403419,185.39,185.34,8.96645503]
[1753375093822,5.39316147,185.42,185.38,8.96645503]
[1753375094024,5.39316147,185.42,185.35,0.66]
[1753375094025,8.96645503,185.41,185.35,8.96645503]
[1753375094342,8.96645503,185.4,185.34,8.96645503]
[1753375094519,34.96645503,185.39,185.31,42.7]
[1753375094716,34.96645503,185.39,185.34,8.96645503]
[1753375095350,34.96645503,185.39,185.31,0.66]
[1753375095645,26.0,185.36,185.34,8.96645503]
[1753375095857,5.3942532,185.39,185.35,9.62645503]
[1753375096020,5.3942532,185.39,185.36,0.66]
[1753375096222,5.3942532,185.39,185.37,8.96645503]
[1753375096838,31.39379992,185.4,185.37,9.62645503]
[1753375097037,31.39379992,185.4,185.37,0.66]
[1753375097237,31.39379992,185.4,185.36,8.96645503]
[1753375097431,31.39379992,185.4,185.35,8.96645503]
[1753375097634,9.52645503,185.39,185.32,41.86]
[1753375097837,5.3949072,185.36,185.31,9.62645503]
[1753375098342,5.3949072,185.36,185.33,8.96645503]
[1753375098542,5.3949072,185.36,185.32,8.96645503]
[1753375099053,5.3949072,185.36,185.34,8.96645503]
[1753375099428,5.3949072,185.36,185.33,8.96645503]
[1753375099924,5.3949072,185.36,185.33,9.62645503]
[1753375102032,5.3949072,185.36,185.32,8.96645503]
[1753375102233,26.0,185.34,185.3,41.7]
[1753375102446,26.0,185.34,185.31,8.96645503]
[1753375102738,26.0,185.34,185.3,42.36]
[1753375102940,26.0,185.34,185.33,9.02645503]
[1753375103138,26.0,185.34,185.33,9.68645503]
[1753375103337,5.39432516,185.38,185.33,9.68645503]
[1753375103547,26.0,185.37,185.33,9.02645503]
[1753375104055,5.3949072,185.36,185.33,9.02645503]
[1753375104957,5.3949072,185.36,185.33,9.68645503]
[1753375105155,8.96645503,185.41,185.35,8.96645503]
[1753375105358,26.0,185.38,185.37,8.96645503]
[1753375105564,0.03,185.43,185.37,9.62645503]
[1753375105775,0.03,185.43,185.4,8.96645503]
[1753375105950,26.03,185.43,185.4,8.96645503]
[1753375106258,31.42289241,185.43,185.4,9.62645503]
[1753375106965,31.42289241,185.43,185.39,8.96645503]
[1753375107141,8.96645503,185.42,185.38,41.66]
[1753375107541,44.90506897,185.43,185.38,41.66]
[1753375107746,53.871524,185.43,185.38,41.66]
[1753375108441,8.96645503,185.42,185.38,41.66]
[1753375110261,5.39345234,185.41,185.38,41.66]
[1753375110566,0.03,185.43,185.4,8.96645503]
[1753375110860,0.03,185.43,185.42,8.96645503]
[1753375111344,5.39054498,185.51,185.46,8.96645503]
[1753375111543,5.39054498,185.51,185.47,51.17645503]
[1753375111754,5.39054498,185.51,185.47,41.54]
[1753375111953,8.96645503,185.5,185.47,41.54]
[1753375112255,5.3911262,185.49,185.47,41.54]
[1753375112461,34.96645503,185.48,185.43,41.52]
[1753375113062,8.96645503,185.47,185.43,41.52]
[1753375113464,8.96645503,185.46,185.43,41.52]
[1753375113667,26.0,185.48,185.45,8.96645503]
[1753375113846,4.26142562,185.52,185.47,8.96645503]
[1753375114048,5.39025442,185.52,185.48,9.63645503]
[1753375114372,8.96645503,185.49,185.47,41.54]
[1753375114555,8.96645503,185.48,185.44,41.54]
[1753375114862,26.0,185.44,185.4,8.96645503]
[1753375115063,26.0,185.44,185.42,41.54]
[1753375115364,26.0,185.43,185.42,41.54]
[1753375115571,26.0,185.43,185.38,1.5379]
[1753375115859,0.59,185.42,185.34,2.3235]
[1753375116076,0.59,185.42,185.35,8.96645503]
[1753375116243,26.0,185.38,185.35,8.96645503]
[1753375116445,26.0,185.38,185.34,50.46645503]
[1753375116660,26.0,185.38,185.34,41.5]
[1753375116870,26.0,185.36,185.3,0.67]
[1753375117172,26.0,185.35,185.29,1.6535]
[1753375117349,8.96645503,185.34,185.26,156.25]
[1753375117559,26.0,185.3,185.26,165.21645503]
[1753375117863,26.0,185.34,185.29,8.96645503]
[1753375118170,5.39578049,185.33,185.3,50.48645503]
[1753375118380,0.5,185.37,185.32,8.96645503]
[1753375118584,36.13679154,185.37,185.33,0.67]
[1753375118750,31.89465751,185.37,185.34,8.96645503]
[1753375119157,31.89465751,185.37,185.33,9.63645503]
[1753375119360,31.89465751,185.37,185.32,8.96645503]
[1753375119760,40.86111254,185.37,185.32,8.96645503]
[1753375119961,26.5,185.37,185.34,8.96645503]
[1753375120159,0.5,185.37,185.35,0.67]
[1753375120364,5.89463745,185.37,185.35,9.63645503]
[1753375120675,0.5,185.37,185.35,0.67]
[1753375120976,5.89466078,185.37,185.35,9.63645503]
[1753375121160,5.89466078,185.37,185.35,8.96645503]
[1753375121355,26.5,185.37,185.35,8.96645503]
[1753375121548,31.8946247,185.37,185.32,0.67]
[1753375121750,26.5,185.37,185.34,8.96645503]
[1753375121956,26.5,185.37,185.36,8.96645503]
[1753375122173,0.5,185.37,185.36,9.63645503]
[1753375122549,5.39257981,185.44,185.36,15.03136223]
[1753375122750,8.96645503,185.43,185.37,0.67]
[1753375122950,34.96645503,185.41,185.36,41.46]
[1753375123562,26.0,185.41,185.36,41.46]
[1753375123770,0.72,185.4,185.36,41.46]
[1753375123970,26.0,185.41,185.36,50.42645503]
[1753375123971,0.72,185.39,185.36,50.42645503]
[1753375124166,14.35903484,185.44,185.38,8.96645503]
[1753375124364,5.39257981,185.44,185.39,8.96645503]
[1753375124582,5.39257981,185.44,185.4,0.67]
[1753375124885,26.0,185.41,185.4,0.67]
[1753375125179,26.0,185.41,185.38,8.96645503]
[1753375125391,26.0,185.41,185.36,41.46]
[1753375125392,8.96645503,185.4,185.36,41.46]
[1753375126260,26.0,185.37,185.36,41.46]
[1753375127874,5.39403419,185.39,185.36,41.46]
[1753375128471,6.11403419,185.39,185.36,41.46]
[1753375128672,0.72,185.38,185.35,0.06]
[1753375128876,53.84557471,185.39,185.35,0.06]
[1753375129069,34.96645503,185.36,185.35,0.06]
[1753375129476,35.68645503,185.36,185.35,0.06]
[1753375129674,35.68645503,185.36,185.31,0.06]
[1753375129979,26.0,185.32,185.31,0.06]
[1753375131589,9.68645503,185.32,185.31,1e-08]
[1753375131802,35.68645503,185.32,185.31,1e-08]
[1753375131972,9.68645503,185.32,185.31,1e-08]
[1753375132181,26.0,185.32,185.31,1e-08]
[1753375132393,31.39607165,185.32,185.31,1e-08]
[1753375132904,5.39519827,185.35,185.31,1e-08]
[1753375133116,5.39432516,185.38,185.34,8.96645503]
[1753375133409,5.39432516,185.38,185.33,8.96645503]
[1753375133583,26.0,185.35,185.33,9.63645503]
[1753375133771,5.39432516,185.38,185.34,9.63645503]
[1753375133970,14.3596165,185.42,185.37,8.96645503]
[1753375134212,8.96645503,185.41,185.36,41.58]
[1753375134370,5.39403419,185.39,185.36,41.58]
[1753375135187,13.3310155,185.43,185.37,0.67]
[1753375135390,8.96645503,185.38,185.35,41.56]
[1753375135576,34.96645503,185.39,185.35,41.56]
[1753375135905,34.96645503,185.39,185.33,51.19645503]
[1753375135906,35.68645503,185.39,185.33,51.19645503]
[1753375136074,0.72,185.38,185.33,41.56]
[1753375136276,9.68645503,185.37,185.33,41.56]
[1753375136573,9.68645503,185.37,185.31,8.96645504]
[1753375136574,31.39607165,185.32,185.31,1e-08]
[1753375136881,40.36252668,185.32,185.31,1e-08]
[1753375137093,31.39607165,185.32,185.31,1e-08]
[1753375137397,40.36252668,185.32,185.31,1e-08]
[1753375137593,31.39607165,185.32,185.31,1e-08]
[1753375137771,41.05252668,185.32,185.31,1e-08]
[1753375137974,41.33684982,185.32,185.31,1e-08]
[1753375138974,45.20844345,185.32,185.31,1e-08]
[1753375139280,41.33684982,185.32,185.31,1e-08]
[1753375139995,82.83684982,185.32,185.31,1e-08]
[1753375140192,31.39607165,185.32,185.31,1e-08]
[1753375140497,8.96645503,185.35,185.31,1e-08]
[1753375140806,34.96645503,185.33,185.31,1e-08]
[1753375141294,9.65645503,185.32,185.31,1e-08]
[1753375141494,26.69,185.32,185.31,1e-08]
[1753375141882,5.3949072,185.36,185.31,9.64645504]
[1753375142083,14.36111665,185.37,185.32,8.96645503]
[1753375142285,14.36048922,185.39,185.33,0.68]
[1753375142492,0.28432314,185.38,185.34,8.96645503]
[1753375142798,0.03,185.43,185.37,8.96645503]
[1753375142998,0.31432314,185.43,185.38,42.26]
[1753375143186,26.0,185.42,185.39,0.68]
[1753375143388,26.0,185.42,185.4,8.96645503]
[1753375143585,26.0,185.42,185.39,0.68]
[1753375143891,31.70721835,185.43,185.39,8.96645503]
[1753375144094,3.48041411,185.42,185.4,0.68]
[1753375144293,0.28432314,185.42,185.41,9.64645503]
[1753375144477,0.28432314,185.42,185.38,41.58]
[1753375144678,0.28432314,185.42,185.4,8.96645503]
[1753375144879,0.03,185.43,185.41,10.61115503]
[1753375145090,0.03,185.47,185.42,50.52645503]
[1753375145395,0.03,185.47,185.46,8.96645503]
[1753375145586,0.03,185.47,185.46,50.58645503]
[1753375145798,0.03,185.47,185.46,51.26645503]
[1753375145997,0.03,185.51,185.47,16.78468397]
[1753375146303,0.03,185.53,185.51,6.0615]
[1753375146509,4.36942702,185.58,185.52,58.24818747]
[1753375146724,0.03,185.58,185.56,8.96645503]
[1753375147002,0.03,185.58,185.56,50.60645503]
[1753375147230,0.03,185.58,185.57,9.64645503]
[1753375147532,0.03,185.58,185.57,18.8972332]
[1753375147831,0.03,185.61,185.58,17.06900711]
[1753375148034,0.03,185.61,185.59,41.7]
[1753375148204,0.03,185.61,185.6,8.96645503]
[1753375148421,0.03,185.61,185.6,9.64645503]
[1753375148637,0.03,185.61,185.6,15.3187092]
[1753375148816,0.03,185.62,185.61,0.28432314]
[1753375149022,0.03,185.71,185.61,9.93077817]
[1753375149221,0.03,185.71,185.7,13.65747383]
[1753375149422,0.2,185.72,185.7,55.35747383]
[1753375149621,0.2,185.72,185.71,14.33747383]
[1753375149837,30.33942702,185.77,185.71,14.33747383]
[1753375150157,3.47742193,185.76,185.72,0.96432314]
[1753375150353,30.33942702,185.8,185.75,13.65747383]
[1753375150579,0.03,185.81,185.76,41.78]
[1753375150878,49.40878362,185.81,185.72,0.68]
[1753375151087,26.0,185.74,185.68,0.68]
[1753375151260,3.47028321,185.73,185.69,41.78]
[1753375151589,5.41188277,185.81,185.7,0.68]
[1753375151953,5.41188277,185.81,185.7,0.96432314]
[1753375152159,5.41188277,185.81,185.71,0.68]
[1753375152380,26.0,185.8,185.77,13.65747383]
[1753375152682,0.69,185.79,185.74,13.65747383]
[1753375152881,13.65747383,185.75,185.66,2.1834]
[1753375153049,5.41188277,185.81,185.66,13.65747383]
[1753375153050,26.0,185.73,185.66,13.65747383]
[1753375153245,26.0,185.71,185.7,13.65747383]
[1753375153747,26.0,185.72,185.7,13.65747383]
[1753375153943,0.69,185.71,185.62,0.68]
[1753375154169,39.65747383,185.69,185.63,41.78]
[1753375154368,13.65747383,185.68,185.63,55.43747383]
[1753375154546,0.69,185.67,185.63,41.78]
[1753375154744,26.0,185.65,185.63,41.78]
[1753375154958,0.69,185.64,185.59,41.76]
[1753375155151,39.65747383,185.65,185.59,55.41747383]
[1753375155354,13.65747383,185.63,185.55,0.68]
[1753375155579,26.0,185.65,185.62,13.65747383]
[1753375155754,26.0,185.65,185.63,13.65747383]
[1753375155951,26.0,185.68,185.64,14.33747383]
[1753375156178,26.0,185.69,185.64,0.68]
[1753375156471,26.0,185.69,185.68,13.65747383]
[1753375156669,5.38430118,185.73,185.68,13.65747383]
[1753375156873,13.65747383,185.77,185.72,13.65747383]
[1753375157082,19.04018456,185.78,185.69,0.68]
[1753375157275,5.38271073,185.78,185.73,13.65747383]
[1753375157458,5.38271073,185.78,185.69,0.68]
[1753375157459,26.0,185.75,185.72,13.65747383]
[1753375157657,0.69,185.75,185.67,0.28432314]
[1753375157861,0.69,185.75,185.71,13.65747383]
[1753375158062,13.45289013,185.84,185.74,13.65747383]
[1753375158250,13.45289013,185.84,185.77,13.65747383]
[1753375158468,13.65747383,185.83,185.77,13.65747383]
[1753375158691,0.69,185.85,185.79,13.65747383]
[1753375159099,0.03,185.86,185.8,13.65747383]
[1753375159279,0.03,185.86,185.8,55.39747383]
[1753375159479,0.03,185.86,185.8,56.07747383]
[1753375160088,0.03,185.86,185.8,56.36179697]
[1753375160395,0.03,185.86,185.8,56.07747383]
[1753375160590,0.03,185.86,185.8,56.36179697]
[1753375160898,0.03,185.86,185.8,61.74392829]
[1753375161899,0.03,185.86,185.8,56.36179697]
[1753375162073,0.03,185.86,185.8,61.74392829]
[1753375162273,0.03,185.86,185.8,55.68179697]
[1753375162492,0.03,185.86,185.8,56.07747383]
[1753375162681,26.03,185.86,185.8,56.07747383]
[1753375163203,0.03,185.86,185.8,61.74392829]
[1753375163496,26.03,185.86,185.8,61.74392829]
[1753375164000,0.69,185.85,185.74,0.68]
[1753375164182,5.58157228,185.82,185.78,13.65747383]
[1753375164381,0.2,185.82,185.8,13.65747383]
[1753375164897,0.2,185.82,185.79,55.27747383]
[1753375165097,5.58165158,185.82,185.79,41.62]
[1753375165395,26.0,185.8,185.79,41.62]
[1753375165597,19.23912541,185.82,185.79,41.62]
[1753375165598,0.2,185.82,185.79,55.27747383]
[1753375165793,26.03,185.81,185.8,13.65747383]
[1753375166008,0.03,185.81,185.8,14.33747383]
[1753375166206,0.03,185.81,185.8,13.65747383]
[1753375166504,0.03,185.81,185.8,14.33747383]
[1753375167188,0.03,185.81,185.8,20.00392829]
[1753375167588,0.03,185.81,185.8,14.33747383]
[1753375167793,0.03,185.81,185.8,13.65747383]
[1753375168012,0.03,185.81,185.8,14.32747383]
[1753375168189,0.03,185.85,185.81,17.06900711]
[1753375168392,0.03,185.86,185.85,0.28432314]
[1753375168603,0.03,185.89,185.85,0.28432314]
[1753375168604,0.03,185.89,185.88,13.94179697]
[1753375168811,0.03,185.89,185.88,55.54179697]
[1753375169016,0.03,185.89,185.88,61.5916119]
[1753375169213,0.03,185.89,185.88,47.64981493]
[1753375169415,0.03,185.89,185.88,61.30728876]
[1753375169592,0.03,185.89,185.88,56.21179697]
[1753375169791,0.03,185.89,185.88,61.5916119]
[1753375170094,0.03,185.89,185.88,92.57175119]
[1753375170815,0.03,185.95,185.89,17.06900711]
[1753375171119,0.03,185.95,185.9,49.76319091]
[1753375171292,0.03,185.95,185.9,50.97111452]
[1753375172212,0.03,185.95,185.91,17.06900711]
[1753375172390,0.03,185.95,185.93,30.72648094]
[1753375172592,0.03,185.95,185.93,13.65747383]
[1753375172790,0.03,185.95,185.91,0.14216157]
[1753375172992,5.37865748,185.92,185.83,13.00977916]
[1753375173294,5.37865748,185.92,185.84,41.56]
[1753375173295,0.66,185.91,185.84,41.56]
[1753375173508,0.66,185.91,185.87,13.65747383]
[1753375173694,0.66,185.91,185.81,42.02]
[1753375173894,26.0,185.89,185.83,13.65747383]
[1753375174098,26.0,185.89,185.85,13.65747383]
[1753375174414,26.0,185.89,185.86,55.17747383]
[1753375174613,26.0,185.89,185.87,41.52]
[1753375174795,26.0,185.89,185.88,13.65747383]